{"text_format":"1","workbook":"xlsx","n_sheets":1,"sheets":["Sheet1"],"not_rendered":{"charts":0,"images":0,"macros":1,"external_links":0,"defined_names":0,"comments":0,"pivot_tables":0},"unopened":[],"bounds":{"document_bytes":16777216,"sheet_cells":100000,"rows_first":2000,"rows_last":500,"rows_between":2000,"halvings":0,"cell_chars":16384,"cell_head_chars":4096},"cells_cut":0,"cells_raw":0,"read":"whole","date_system":"1900"}

{"sheet":"Sheet1","index":0,"n_rows":59,"n_cols":9,"rows_kept":59,"cut":false,"hidden":false,"merged":[[59,0,62,3],[12,1,12,8],[7,1,7,8],[6,1,6,8],[5,1,5,8],[58,0,58,3],[36,0,36,8],[11,1,11,8],[13,0,13,8],[1,0,1,8],[0,0,0,8],[51,0,52,0],[51,1,52,8],[8,1,8,8],[9,1,9,8],[10,1,10,8],[4,1,4,8],[3,1,3,8],[2,1,2,8],[25,0,25,8],[33,0,34,0],[33,1,34,8],[15,0,15,8],[14,0,14,8]]}
["PROGRAMME DE SOUTIEN AUX COMMUNAUTÉS ETHNOCULTURELLES – RAPPORT FINANCIER"]
["DIRECTIVES – Vous pouvez adapter ou modifier les rubriques au besoin en fonction des recettes et des dépenses de votre organisme. Pour ajouter une nouvelle rubrique, faites un clic droit sur le numéro de la ligne à gauche de l’emplacement voulu et sélectionnez « Insérer ». Même si les montants s’additionneront automatiquement, nous vous recommandons de vérifier que ces totaux correspondent bien à ceux inscrits à votre budget."]
["NOM DE L’ORGANISME"]
["PÉRIODE DE RÉCEPTION DES DEMANDES (mois-année)"]
["TYPE DE SUBVENTION ACCORDÉE (programmation, initiative spéciale ou les deux)"]
["Titre du programme 1"]
["Titre du programme 2"]
["Titre du programme 3"]
["Titre du programme 4"]
["Titre du programme 5"]
["Titre du programme 6"]
["Titre du programme +"]
["Titre de l’initiative spéciale"]
[]
["A. Recettes financées par le Programme de soutien aux communautés ethnoculturelles"]
["Recettes de l’organisme"]
["Veuillez dresser la liste de toutes les recettes de l’organisme qui ont été affectées à la prestation de programmes ou à l’organisation de l’initiative spéciale financés par le Programme de soutien aux communautés ethnoculturelles.","Programme 1","Programme 2","Programme 3","Programme 4","Programme 5","Programme 6","Programme +","Initiative spéciale"]
["Subvention du Programme de soutien aux communautés ethnoculturelles "]
["Subvention fédérale (précisez)"]
["Autre subvention provinciale (précisez)"]
["Subvention municipale (précisez)"]
["Subvention reçue d’une fondation privée (précisez)"]
["Dons"]
["Cotisations des membres de l’organisme"]
["Autres (précisez)"]
["Recettes des programmes de base ou de l’initiative spéciale financés par le Programme de soutien aux communautés ethnoculturelles"]
["Veuillez dresser la liste de toutes les recettes réalisées par l’entremise des programmes ou de l’initiative spéciale financés par le Programme de soutien aux communautés ethnoculturelles.","Programme 1","Programme 2","Programme 3","Programme 4","Programme 5","Programme 6","Programme +","Initiative spéciale"]
["Droits d’inscription à des cours"]
["Droits d’inscription à des camps pour jeunes"]
["Droits d’entrée à une activité"]
["Dons"]
["Autres (précisez)"]
["Sous-total des recettes pour les programmes et l’initiative spéciale",{"$f":"SUM(B18:B25,B28:B32)","v":0},0,0,0,0,0,{"$f":"SUM(H18:H25,H28:H32)","v":0},{"$f":"SUM(I18:I25,I28:I32)","v":0}]
["TOTAL DES RECETTES RÉALISÉES GRÂCE AU FINANCEMENT ACCORDÉ",{"$f":"SUM(B33:I33)","v":0}]
[]
[]
["B. Dépenses des programmes ou de l’initiative spéciale financés par le Programme de soutien aux communautés ethnoculturelles"]
["Veuillez dresser la liste de toutes les dépenses engagées pour la prestation de programmes de base ou l’organisation de l’initiative spéciale financés par le Programme de soutien aux communautés ethnoculturelles.","Programme 1","Programme 2","Programme 3","Programme 4","Programme 5","Programme 6","Programme +","Initiative spéciale"]
["Honoraires (aînés, maître de cérémonie, animateurs, etc.)"]
["Location de salles (y compris les services de conciergerie)"]
["Publicité et promotion"]
["Impression"]
["Fournitures (précisez)"]
["Location d’équipement (précisez)"]
["Achat d’équipement (précisez)"]
["Déplacements (à l’intérieur du Manitoba)"]
["Déplacements (à l’extérieur du Manitoba)"]
["Nourriture et rafraîchissements pour les activités de sensibilisation et de dialogue"]
["Équipement de protection individuelle (masques, désinfectant pour les mains, gants, etc.)"]
["Autres (précisez)"]
["Sous-total des dépenses pour les programmes et l’initiative spéciale",{"$f":"SUM(B39:B50)","v":0},0,0,0,0,{"$f":"SUM(G39:G50)","v":0},{"$f":"SUM(H39:H50)","v":0},0]
["TOTAL DES DÉPENSES FINANCÉES POUR LES PROGRAMMES ET L’INITIATIVE SPÉCIALE",{"$f":"SUM(B51:I51)","v":0}]
[]
[]
["TOTAL DES RECETTES",{"$f":"B34","v":0}]
["TOTAL DES DÉPENSES",{"$f":"B52","v":0}]
["Recettes - dépenses = profits / (pertes)",{"$f":"+B55-B56","v":0}]
[]
["Si la prestation des programmes de base ou l’organisation de l’initiative spéciale ont entraîné un déficit, veuillez expliquer ci-dessous comment ce déficit sera comblé."]